bitfinex-derivatives/quotes_SOLF0:USTF0_20250310
["timestamp","ask_amount","ask_price","bid_price","bid_amount"]
[1741569506066,4.0315,127.12,127.01,32.12775573]
[1741569506271,4.0315,127.12,127.02,36.34]
[1741569506574,7.8695,127.1,127.06,7.8713]
[1741569506769,0.04974755,127.08,127.06,0.0570943]
[1741569507569,0.04974755,127.08,127.06,36.3970943]
[1741569507866,418.51581931,127.15,127.06,36.3970943]
[1741569508077,12.0997,127.19,127.07,32.12775573]
[1741569509259,0.05278436,127.14,127.12,7.92603376]
[1741569509469,0.05278436,127.14,127.12,44.26603376]
[1741569509664,7.9105,127.19,127.12,36.39823376]
[1741569510064,0.0574739,127.14,127.12,36.39823376]
[1741569510471,259.8,127.21,127.12,36.39823376]
[1741569510668,259.8,127.21,127.13,3.8731]
[1741569511071,259.8,127.21,127.1,32.12775573]
[1741569511072,32.12775573,127.2,127.1,36.34]
[1741569511573,32.12775573,127.17,127.1,36.34]
[1741569511871,7.8842,127.16,127.1,36.34]
[1741569512071,7.8671,127.14,127.12,0.05787545]
[1741569512272,0.05753756,127.15,127.12,0.05787545]
[1741569513474,0.05753756,127.15,127.13,7.8673]
[1741569513770,0.05753756,127.15,127.12,0.05787545]
[1741569513967,0.05753756,127.15,127.13,7.8673]
[1741569514277,0.05753756,127.15,127.12,0.05787545]
[1741569514967,7.92403756,127.15,127.12,0.05787545]
[1741569515171,0.05753756,127.15,127.12,0.05787545]
[1741569515775,0.05753756,127.15,127.12,7.92527545]
[1741569515974,0.05753756,127.15,127.12,0.05787545]
[1741569516878,7.92413756,127.15,127.12,0.05787545]
[1741569517175,0.05753756,127.15,127.12,0.05787545]
[1741569517367,7.8673,127.13,127.12,0.05787545]
[1741569517568,36.32,127.14,127.07,36.32]
[1741569518071,32.12775573,127.15,127.07,36.32]
[1741569518866,0.06038053,127.12,127.1,0.05938593]
[1741569519476,7.8686,127.11,127.1,0.05938593]
[1741569519679,0.06038053,127.12,127.1,0.05938593]
[1741569519979,7.92838053,127.12,127.1,0.05938593]
[1741569520570,7.8686,127.11,127.1,0.05938593]
[1741569522180,0.06038053,127.12,127.1,0.05938593]
[1741569522576,3.956,127.18,127.12,7.8678]
[1741569522774,7.8658,127.16,127.12,7.8678]
[1741569522975,3.956,127.18,127.12,7.8678]
[1741569523379,3.956,127.18,127.1,11.8388]
[1741569523682,7.8683,127.12,127.05,40.18675573]
[1741569523874,0.05225936,127.15,127.06,40.1743]
[1741569524069,0.05907219,127.13,127.07,0.05601713]
[1741569524275,0.05907219,127.13,127.06,40.1743]
[1741569524477,0.05907219,127.13,127.09,0.05069555]
[1741569524776,7.92677219,127.13,127.1,36.3]
[1741569525376,7.8685,127.12,127.1,36.3]
[1741569525574,0.05907219,127.13,127.1,36.3]
[1741569525979,7.8683,127.12,127.1,36.3]
[1741569526179,0.05907219,127.13,127.09,0.05069555]
[1741569526679,7.8684,127.12,127.09,0.05069555]
[1741569526873,0.05907219,127.13,127.09,0.05069555]
[1741569527070,7.8687,127.11,127.09,0.05069555]
[1741569527281,0.05907219,127.13,127.09,0.05069555]
[1741569527477,0.05907219,127.13,127.12,7.8679]
[1741569527781,0.05907219,127.13,127.09,0.05069555]
[1741569528279,7.92647219,127.13,127.1,7.8691]
[1741569528579,0.05907219,127.13,127.11,7.8685]
[1741569528984,0.05907219,127.13,127.09,0.05069555]
[1741569529181,0.05907219,127.13,127.09,7.92029555]
[1741569529384,0.05907219,127.13,127.09,0.05069555]
[1741569530384,0.05907219,127.13,127.09,7.92009555]
[1741569530680,0.05907219,127.13,127.09,0.05069555]
[1741569531082,7.8692,127.1,127.09,0.05069555]
[1741569531484,7.8689,127.11,127.09,0.05069555]
[1741569531988,0.05907219,127.13,127.09,0.05069555]
[1741569532282,4.11127219,127.13,127.09,0.05069555]
[1741569532491,32.12775573,127.12,127.09,0.05069555]
[1741569532682,36.32765573,127.12,127.09,0.05069555]
[1741569533191,7.8692,127.1,127.09,9.555e-05]
[1741569533488,4.1999,127.12,127.09,9.555e-05]
[1741569533887,7.8689,127.11,127.09,9.555e-05]
[1741569534187,4.1999,127.12,127.09,9.555e-05]
[1741569534389,0.05907219,127.13,127.09,9.555e-05]
[1741569535185,7.8692,127.1,127.09,9.555e-05]
[1741569536487,12.0334,127.1,127.09,9.555e-05]
[1741569537686,8.1042,127.1,127.0,31.41381626]
[1741569537884,32.12775573,127.08,127.0,31.41381626]
[1741569538083,68.42775573,127.08,127.0,31.41381626]
[1741569538389,7.8748,127.01,127.0,31.41381626]
[1741569539188,0.05575013,127.02,127.0,31.41381626]
[1741569540087,0.05575013,127.02,126.99,0.0585912]
[1741569540485,36.3,127.08,126.99,4.0760912]
[1741569540686,4.1642,127.1,127.06,7.8713]
[1741569541487,4.1642,127.1,127.03,36.3]
[1741569541692,0.05938043,127.09,127.07,0.05689527]
[1741569542089,0.05938043,127.09,127.08,7.8704]
[1741569542690,7.931,127.16,127.1,7.8688]
[1741569542889,7.931,127.16,127.07,36.35689527]
[1741569543089,40.05875573,127.16,127.07,36.3]
[1741569543292,7.8684,127.12,127.04,76.49725573]
[1741569543689,7.869,127.11,127.04,76.49725573]
[1741569543891,0.05218135,127.09,127.07,0.05522226]
[1741569544191,4.0925,127.13,127.07,0.05522226]
[1741569544192,7.8704,127.08,127.07,0.05522226]
[1741569544385,32.18543763,127.09,126.99,3.8481]
[1741569544585,162.67131931,127.09,126.95,40.4443]
[1741569544786,32.12775573,127.04,126.95,4.1443]
[1741569544990,36.3,127.05,126.96,36.3]
[1741569545592,0.05612624,127.02,126.99,0.05358668]
[1741569548388,7.8748,127.01,126.99,0.05358668]
[1741569549498,7.8754,127.0,126.99,0.05358668]
[1741569549696,0.05612624,127.02,126.99,0.05358668]
[1741569550898,0.05612624,127.02,126.99,36.37358668]
[1741569551694,7.8754,127.0,126.99,0.05358668]
[1741569551891,0.05612624,127.02,126.99,0.05358668]
[1741569552299,7.8748,127.01,126.99,0.05358668]
[1741569552498,0.05612624,127.02,126.99,0.05358668]
[1741569552893,7.8751,127.01,126.99,0.05358668]
[1741569553193,0.05612624,127.02,126.99,0.05358668]
[1741569554198,0.05612624,127.02,127.01,7.8748]
[1741569554495,1.57368793,127.09,127.0,88.54544197]
[1741569554693,4.1164,127.1,127.01,4.0992]
[1741569554891,56.34184197,127.1,127.01,4.0992]
[1741569555091,7.8713,127.07,127.03,7.8732]
[1741569555292,4.1164,127.1,127.01,4.0992]
[1741569555493,7.8705,127.08,127.01,4.0992]
[1741569555695,0.05210615,127.06,127.04,0.05206064]
[1741569556687,7.8723,127.05,127.04,0.05206064]
[1741569556893,0.05210615,127.06,127.04,0.05206064]
[1741569560697,263.5127,127.12,127.04,36.35206064]
[1741569560899,36.3,127.15,127.05,52.22544197]
[1741569561098,36.3,127.15,127.1,7.8691]
[1741569561502,36.3,127.15,127.05,52.22544197]
[1741569562003,0.05018801,127.11,127.09,0.05181359]
[1741569562208,0.05018801,127.11,127.1,7.8692]
[1741569562609,8.1416,127.16,127.09,0.05181359]
[1741569562805,7.8683,127.12,127.09,0.05181359]
[1741569563014,8.1416,127.16,127.09,0.05181359]
[1741569563707,52.22544197,127.14,127.09,0.05181359]
[1741569563908,52.28548785,127.14,127.09,0.05181359]
[1741569564208,52.22544197,127.12,127.09,0.05181359]
[1741569564406,7.8692,127.1,127.09,0.05181359]
[1741569565009,7.92685269,127.11,127.09,0.05181359]
[1741569565513,0.05785269,127.11,127.09,0.05181359]
[1741569566007,7.8692,127.1,127.09,1.359e-05]
[1741569566203,8.1621,127.1,127.02,4.0026]
[1741569566903,36.3,127.09,127.02,4.0026]
[1741569567109,7.8741,127.03,126.99,48.2834]
[1741569567307,52.27609465,127.07,126.99,40.4075]
[1741569567498,52.22544197,127.05,127.0,0.05504738]
[1741569567706,7.8748,127.01,127.0,0.05504738]
[1741569569001,3.90454647,127.04,127.0,0.05504738]
[1741569569207,0.05654647,127.04,127.0,0.05504738]
[1741569569803,0.05654647,127.04,127.0,36.35504738]
[1741569570010,35.99118271,127.09,127.0,36.35504738]
[1741569570011,263.665,127.1,127.01,32.14318271]
[1741569570213,7.8704,127.08,127.01,40.29468271]
[1741569570811,7.8715,127.07,127.01,40.29468271]
[1741569571012,263.665,127.1,127.01,8.1515]
[1741569571210,0.0548299,127.05,127.03,0.05604646]
[1741569571513,263.665,127.1,127.03,0.05604646]
[1741569571714,0.0603431,127.05,127.03,0.05604646]
[1741569572011,0.05689794,127.05,127.03,0.05604646]
[1741569573511,0.05689794,127.05,127.03,7.92934646]
[1741569574113,0.05689794,127.05,127.04,7.8729]
[1741569575013,40.128,127.13,127.04,36.28]
[1741569575314,3.848,127.13,127.04,36.28]
[1741569575514,11.7157,127.13,127.09,7.8693]
[1741569576110,0.05151136,127.12,127.1,0.05586662]
[1741569576705,0.05151136,127.12,127.1,7.92476662]
[1741569577412,0.05151136,127.12,127.1,0.05586662]
[1741569578921,0.05151136,127.12,127.11,7.8686]
[1741569579619,4.1409,127.19,127.13,7.8672]
[1741569579814,4.1409,127.19,127.12,36.28]
[1741569580220,259.66,127.22,127.12,36.28]
[1741569580618,32.14318271,127.2,127.12,36.28]
[1741569580818,32.14318271,127.2,127.1,4.062]
[1741569580819,32.14318271,127.17,127.1,4.062]
[1741569581317,32.14318271,127.15,127.09,36.28]
[1741569581719,68.42318271,127.15,127.06,36.28]
[1741569581922,32.14318271,127.12,127.03,44.5102]
[1741569582118,32.14318271,127.09,126.99,323.25699897]
[1741569582421,32.14318271,127.09,126.99,39.64401626]
[1741569582621,3.9488,127.08,126.99,75.92401626]
[1741569582820,3.9488,127.08,126.99,39.64401626]
[1741569582821,7.8741,127.03,126.99,39.64401626]
[1741569583020,68.42318271,127.07,126.99,39.64401626]
[1741569583215,32.14318271,127.05,126.99,31.41381626]
[1741569583419,7.8751,127.01,126.97,115.18399295]
[1741569583626,68.42318271,127.03,126.97,115.18399295]
[1741569583822,72.44878271,127.03,126.97,115.18399295]
[1741569584019,32.14318271,127.0,126.97,115.18399295]
[1741569584325,7.8766,126.98,126.97,115.18399295]
[1741569586026,7.8766,126.98,126.97,108.80579295]
[1741569586226,7.8772,126.97,126.96,0.0515088]
[1741569586922,7.8767,126.98,126.96,0.0515088]
[1741569587427,7.8772,126.97,126.96,0.0515088]
[1741569587629,68.47591263,126.99,126.96,0.0515088]
[1741569587928,36.33272992,126.99,126.96,0.0515088]
[1741569588634,44.20882992,126.99,126.96,0.0515088]
[1741569588834,36.33272992,126.99,126.96,0.0515088]
[1741569589233,0.05272992,126.99,126.96,0.0515088]
[1741569591335,36.33272992,126.99,126.96,0.0515088]
[1741569591939,7.8766,126.98,126.96,0.0515088]
[1741569592135,36.33272992,126.99,126.96,0.0515088]
[1741569592335,36.33272992,126.99,126.9,40.2391]
[1741569592540,7.8784,126.96,126.91,7.8805]
[1741569592841,36.28,126.99,126.9,40.2391]
[1741569593134,7.8776,126.97,126.92,7.8799]
[1741569593439,68.42318271,126.99,126.9,40.2391]
[1741569593640,0.06013299,126.96,126.93,7.93256112]
[1741569593842,0.06013299,126.96,126.93,0.05296112]
[1741569594239,0.06013299,126.96,126.94,7.8786]
[1741569594432,0.06013299,126.96,126.93,0.05296112]
[1741569595835,36.33688271,127.02,126.94,36.28]
[1741569596340,4.1937,127.02,126.94,36.28]
[1741569597040,0.0573731,126.99,126.97,0.0582614]
[1741569597541,0.0573731,126.99,126.98,7.8766]
[1741569597734,0.0573731,126.99,126.97,0.0582614]
[1741569601447,7.8766,126.98,126.97,0.0582614]
[1741569601640,0.0573731,126.99,126.97,0.0582614]
[1741569603742,0.0573731,126.99,126.97,7.9353614]
[1741569604140,0.0573731,126.99,126.97,0.0582614]
[1741569604745,0.0573731,126.99,126.97,7.9350614]
[1741569605344,0.0573731,126.99,126.98,44.1566]
[1741569605643,8.4039,127.07,126.98,44.1566]
[1741569605644,4.1961,127.07,126.98,36.28]
[1741569605848,12.0674,127.07,127.03,7.8732]
[1741569606347,4.1961,127.07,127.02,36.28]
[1741569606648,0.05809674,127.06,127.04,0.05433761]
[1741569609151,68.40318271,127.15,127.04,0.05433761]
[1741569609348,68.40318271,127.15,127.03,36.22698271]
[1741569609946,7.8696,127.1,127.03,36.22698271]
[1741569610148,0.05001413,127.1,127.08,0.05316419]
[1741569610353,0.05001413,127.1,127.03,36.22698271]
[1741569610553,0.05001413,127.1,127.08,0.05400023]
[1741569610747,0.05001413,127.1,127.08,0.05782149]
[1741569611157,7.91961413,127.1,127.08,0.05782149]
[1741569611350,0.05001413,127.1,127.08,0.05782149]
[1741569611852,0.05001413,127.1,127.04,4.1823]
[1741569611853,32.14318271,127.09,127.02,36.26]
[1741569612053,32.14318271,127.06,126.97,8.1068]
[1741569612258,7.8751,127.01,126.97,52.2438]
[1741569612451,7.8751,127.01,126.97,44.3668]
[1741569612754,7.8751,127.01,126.97,52.2436]
[1741569612955,0.05671231,127.0,126.98,0.05733213]
[1741569613358,36.24,127.02,126.92,192.0]
[1741569613560,36.24,127.02,126.98,0.05731385]
[1741569613561,0.05413571,127.0,126.98,0.05731385]
[1741569613852,7.876,126.99,126.98,0.05731385]
[1741569615056,7.92973571,127.0,126.98,0.05731385]
[1741569615455,0.05413571,127.0,126.98,36.29731385]
[1741569615760,72.32698271,127.08,126.98,36.29731385]
[1741569615950,72.32698271,127.08,126.99,3.9221]
[1741569616153,32.14318271,127.05,126.99,3.9221]
[1741569616450,68.38318271,127.08,126.99,3.9221]
[1741569616655,7.8716,127.07,127.01,7.8743]
[1741569616953,0.05369991,127.05,127.02,0.05863336]
[1741569617660,0.05369991,127.05,127.03,7.8731]
[1741569617964,0.05369991,127.05,127.02,36.29863336]
[1741569618154,44.1075,127.13,127.07,7.8705]
[1741569618361,7.8675,127.13,127.06,36.24]
[1741569618657,63.01977286,127.14,127.06,36.24]
[1741569618864,10.85835845,127.14,127.07,3.9822]
[1741569619363,10.85835845,127.14,127.09,0.0536633]
[1741569619767,383.63275385,127.15,127.09,0.0536633]
[1741569619768,263.7188,127.15,127.09,0.0536633]
[1741569620059,303.30216404,127.21,127.1,36.24]
[1741569620258,56.34371441,127.2,127.1,36.24]
[1741569620458,303.30216404,127.21,127.11,52.16141441]
[1741569620656,303.30216404,127.21,127.14,7.91954098]
[1741569620856,303.30216404,127.21,127.14,44.15954098]
[1741569621257,303.30216404,127.21,127.15,7.8659]
[1741569622059,303.30216404,127.21,127.17,0.05320611]
[1741569622866,52.16141441,127.2,127.17,0.05320611]
[1741569623165,7.8642,127.18,127.17,0.05320611]
[1741569625564,7.8642,127.18,127.17,6.11e-06]
[1741569626868,3.94,127.18,127.09,8.1609]
[1741569627066,52.16141441,127.16,127.09,4.0014]
[1741569627267,36.2,127.15,127.09,4.0014]
[1741569627662,36.2,127.15,127.07,3.9822]
[1741569627867,7.8709,127.08,127.04,40.2558]
[1741569628069,0.05320611,127.12,127.1,0.05242808]
[1741569628370,52.16141441,127.13,127.04,40.2558]
[1741569628570,0.0509975,127.12,127.04,40.2558]
[1741569628767,0.0509975,127.12,127.07,0.05431044]
[1741569628967,52.16141441,127.13,127.07,0.05431044]
[1741569629262,7.8704,127.08,127.07,0.05431044]
[1741569629467,36.25320611,127.11,127.07,0.05431044]
[1741569629671,0.05320611,127.11,127.07,0.05431044]
[1741569630660,7.92220611,127.11,127.07,0.05431044]
[1741569631065,0.05320611,127.11,127.07,0.05431044]
[1741569631360,7.8704,127.08,127.07,0.05431044]
[1741569631568,60.03181441,127.08,127.07,1.044e-05]
[1741569632372,52.16141441,127.08,127.0,4.098]
[1741569632569,52.16141441,127.08,126.98,40.1446]
[1741569632767,52.16141441,127.08,126.99,3.8856]
[1741569632967,7.8734,127.04,127.0,7.8752]
[1741569633168,52.16141441,127.08,126.99,3.8856]
[1741569633671,0.05838287,127.05,127.02,0.05132645]
[1741569633968,0.05838287,127.05,126.99,3.8856]
[1741569634270,0.05838287,127.05,127.02,0.05551003]
[1741569635172,7.8734,127.04,127.02,0.05551003]
[1741569635373,0.05838287,127.05,127.02,0.05551003]
[1741569635876,7.8733,127.04,127.02,0.05551003]
[1741569636675,0.05838287,127.05,127.02,0.05551003]
[1741569637274,7.8731,127.04,127.02,0.05551003]
[1741569637675,7.8735,127.03,127.02,0.05551003]
[1741569642174,0.05838287,127.05,126.87,83.01102252]
[1741569642379,7.8767,126.98,126.94,4.24]
[1741569642578,32.14031984,127.03,126.94,40.44]
[1741569642774,36.2,127.02,126.94,4.24]
[1741569642975,40.2221,127.02,126.92,36.2]
[1741569643174,32.14031984,127.0,126.93,7.8796]
[1741569643478,0.05593983,126.98,126.96,0.05033369]
[1741569643680,0.05593983,126.98,126.97,7.8772]
[1741569645079,0.05593983,126.98,126.96,0.05033369]
[1741569646877,7.8772,126.97,126.96,0.05033369]
[1741569649483,40.17663983,126.98,126.96,0.05033369]
[1741569649484,44.13273983,126.98,126.96,0.05033369]
[1741569649683,0.05593983,126.98,126.96,0.05033369]
[1741569649881,7.8772,126.97,126.96,0.05033369]
[1741569650783,7.8772,126.97,126.96,3.369e-05]
[1741569651283,44.0772,126.97,126.96,3.369e-05]
[1741569652082,36.2,126.97,126.88,44.3729]
[1741569652283,3.8584,126.96,126.88,12.0831]
[1741569652481,32.14031984,126.95,126.88,19.9656]
[1741569652680,7.8813,126.91,126.88,19.9656]
[1741569653173,7.8813,126.91,126.88,20.02414012]
[1741569653373,0.05295504,126.91,126.88,12.14164012]
[1741569656987,7.93405504,126.91,126.88,12.14164012]
[1741569657282,0.05295504,126.91,126.88,12.14164012]
[1741569657483,0.05295504,126.91,126.89,7.8817]
[1741569657796,0.05295504,126.91,126.88,12.14164012]
[1741569659297,0.05295504,126.91,126.88,20.02414012]
[1741569659788,0.05295504,126.91,126.89,7.8821]
[1741569660283,0.05295504,126.91,126.88,12.14164012]
[1741569663485,0.05295504,126.91,126.88,0.05854012]
[1741569663793,7.8822,126.89,126.88,0.05854012]
[1741569664393,7.8822,126.89,126.82,8.2436]
[1741569664394,7.8844,126.86,126.83,7.8857]
[1741569664586,32.14031984,126.89,126.82,8.2436]
[1741569664787,7.8844,126.86,126.83,7.8857]
[1741569665193,32.14031984,126.89,126.79,4.175]
[1741569665387,0.05876654,126.86,126.83,0.05770348]
[1741569666094,32.14031984,126.94,126.83,36.05502332]
[1741569666288,32.14031984,126.94,126.83,35.99731984]
[1741569666483,40.1835,126.95,126.83,3.857]
[1741569666690,32.14031984,126.92,126.83,40.037]
[1741569666884,7.8801,126.93,126.83,40.037]
[1741569667085,7.8801,126.93,126.83,72.17731984]
[1741569667291,0.05659357,126.89,126.87,0.05452843]
[1741569667486,36.18,126.91,126.83,36.18]
[1741569667690,32.14031984,126.9,126.83,36.18]
[1741569667893,0.05119307,126.89,126.87,7.94282248]
[1741569668087,0.05119307,126.89,126.87,0.05962248]
[1741569668495,7.93369307,126.89,126.87,0.05962248]
[1741569669194,7.8828,126.88,126.87,0.05962248]
[1741569671796,296.10031984,126.88,126.76,36.18]
[1741569672099,32.14031984,126.84,126.76,3.9998]
[1741569672293,68.32031984,126.84,126.76,3.9998]
[1741569672490,32.14031984,126.84,126.76,3.9998]
[1741569672699,36.18,126.86,126.77,7.8894]
[1741569672897,0.05820103,126.81,126.79,0.05884027]
[1741569673502,7.8878,126.8,126.79,0.05884027]
[1741569674596,32.19852087,126.81,126.79,0.05884027]
[1741569674902,0.05820103,126.81,126.79,0.05884027]
[1741569675803,3.8535,126.87,126.79,0.05884027]
[1741569675996,301.84339255,126.88,126.82,7.8865]
[1741569675997,261.59629255,126.88,126.82,7.8865]
[1741569676197,261.59629255,126.88,126.81,36.18]
[1741569676397,261.59629255,126.88,126.8,4.0142]
[1741569676798,261.59629255,126.88,126.77,44.0693]
[1741569676799,32.14031984,126.85,126.7,192.0]
[1741569677000,40.3411,126.84,126.83,3.694e-05]
[1741569677198,40.3411,126.84,126.74,40.1942]
[1741569677400,7.8883,126.8,126.74,40.1942]
[1741569677596,40.3411,126.84,126.74,40.1942]
[1741569678001,7.8869,126.82,126.74,40.1942]
[1741569678403,0.05369986,126.79,126.77,0.06043574]
[1741569679505,44.0659,126.84,126.79,7.8878]
[1741569679808,7.8859,126.84,126.78,36.18]
[1741569680007,7.886,126.83,126.78,36.18]
[1741569680208,32.14031984,126.85,126.78,36.18]
[1741569680609,0.05957923,126.83,126.8,7.94320768]
[1741569681005,0.05957923,126.83,126.8,0.05570768]
[1741569681209,0.05957923,126.83,126.81,7.8872]
[1741569681409,0.05957923,126.83,126.8,0.05570768]
[1741569681711,0.05957923,126.83,126.8,7.94330768]
[1741569681912,0.05957923,126.83,126.8,0.05570768]
[1741569682512,7.94577923,126.83,126.8,0.05570768]
[1741569682911,0.05957923,126.83,126.8,0.05570768]
[1741569683109,7.887,126.82,126.8,0.05570768]
[1741569683306,0.05957923,126.83,126.8,0.05570768]
[1741569683508,32.14031984,126.82,126.8,7.68e-06]
[1741569683808,32.14031984,126.82,126.74,4.0142]
[1741569684005,72.18241984,126.84,126.71,3.9441]
[1741569684006,32.14031984,126.79,126.71,3.9441]
[1741569684209,7.8919,126.74,126.71,3.9441]
[1741569684410,36.16,126.78,126.71,3.9441]
[1741569684809,0.05771125,126.76,126.73,0.0513394]
[1741569685210,7.8915,126.75,126.73,0.0513394]
[1741569685710,0.05771125,126.76,126.73,0.0513394]
[1741569685911,0.05771125,126.76,126.73,7.9434394]
[1741569686213,0.05771125,126.76,126.73,0.0513394]
[1741569687106,40.12461984,126.84,126.73,36.2113394]
[1741569687107,76.28461984,126.84,126.73,36.2113394]
[1741569687310,76.28461984,126.84,126.74,4.1748]
[1741569687710,32.14031984,126.81,126.74,4.1748]
[1741569688212,0.05521917,126.79,126.77,7.8897]
[1741569688416,7.8868,126.82,126.75,4.2008]
[1741569688614,0.05778366,126.79,126.77,0.05803576]
[1741569688911,4.1469,126.85,126.77,36.21803576]
[1741569689116,4.1469,126.85,126.77,36.16]
[1741569689912,0.05452067,126.82,126.8,0.05285203]
[1741569691718,0.05452067,126.82,126.8,7.94005203]
[1741569691920,0.05452067,126.82,126.8,0.05285203]
[1741569692314,0.05452067,126.82,126.81,7.8872]
[1741569693218,0.05452067,126.82,126.8,0.05285203]
[1741569693716,0.05452067,126.82,126.81,7.8872]
[1741569694020,0.05452067,126.82,126.8,0.05285203]
[1741569694421,0.05452067,126.82,126.81,7.8872]
[1741569696927,41.76349255,126.88,126.83,7.8854]
[1741569697128,41.76349255,126.88,126.78,4.0129]
[1741569698027,0.05747872,126.84,126.82,0.05972441]
[1741569698529,0.05747872,126.84,126.83,7.8859]
[1741569698824,0.05747872,126.84,126.82,0.05972441]
[1741569699029,0.05747872,126.84,126.82,7.94572441]
[1741569699230,0.05747872,126.84,126.82,0.05972441]
[1741569699725,1.57629255,126.88,126.82,0.05972441]
[1741569699931,268.1019,126.9,126.82,4.05972441]
[1741569700132,268.1019,126.9,126.86,7.8837]
[1741569700937,0.04630576,126.89,126.87,0.04991335]
[1741569701434,32.1866256,126.89,126.87,0.04991335]
[1741569702524,0.04630576,126.89,126.87,0.04991335]
[1741569703029,7.92880576,126.89,126.87,0.04991335]
[1741569703225,0.04630576,126.89,126.87,0.04991335]
[1741569704029,7.92890576,126.89,126.87,0.04991335]
[1741569704439,0.04630576,126.89,126.87,0.04991335]
[1741569704638,7.8828,126.88,126.87,0.04991335]
[1741569707843,0.04630576,126.89,126.87,0.04991335]
[1741569708438,7.8828,126.88,126.87,0.04991335]
[1741569710246,0.04630576,126.89,126.87,0.04991335]
[1741569711338,4.0034,126.95,126.87,0.04991335]
[1741569711536,40.1034,126.95,126.87,4.24621335]
[1741569711737,40.1034,126.95,126.87,4.1963]
[1741569711945,7.8815,126.91,126.87,4.1963]
[1741569712543,7.8815,126.91,126.88,0.05628329]
[1741569714548,7.8815,126.91,126.88,7.93908329]
[1741569715141,7.8815,126.91,126.88,0.05628329]
[1741569715348,7.8817,126.9,126.88,0.05628329]
[1741569716144,7.8813,126.91,126.88,7.93908329]
[1741569716344,20.12397558,126.93,126.88,0.05628329]
[1741569717042,7.8815,126.91,126.88,0.05628329]
[1741569717247,20.12397558,126.93,126.88,0.05628329]
[1741569717450,7.8813,126.91,126.88,7.93908329]
[1741569717647,7.8813,126.91,126.88,0.05628329]
[1741569717849,20.12397558,126.93,126.88,0.05628329]
[1741569718441,7.8816,126.9,126.88,0.05628329]
[1741569718752,20.12397558,126.91,126.88,0.05628329]
[1741569719444,7.8816,126.9,126.88,0.05628329]
[1741569719645,20.12397558,126.91,126.88,0.05628329]
[1741569720148,7.8822,126.89,126.88,0.05628329]
[1741569721444,28.00617558,126.89,126.88,0.05628329]
[1741569722047,20.12397558,126.89,126.83,3.9671]
[1741569722451,4.0486,126.9,126.83,3.9671]
[1741569722647,7.8825,126.89,126.83,3.9671]
[1741569723048,7.8833,126.88,126.83,3.9671]
[1741569723252,0.05628329,126.87,126.85,0.05059021]
[1741569724550,7.93988329,126.87,126.85,0.05059021]
[1741569724755,0.05628329,126.87,126.85,0.05059021]
[1741569724946,20.18025887,126.87,126.85,0.00428445]
[1741569725152,56.24025887,126.87,126.8,4.0064]
[1741569725349,20.12397558,126.85,126.78,36.06]
[1741569726245,7.8857,126.84,126.8,7.8874]
[1741569726452,0.0548795,126.83,126.8,0.05262859]
[1741569727254,0.0548795,126.83,126.8,7.94012859]
[1741569727854,0.0548795,126.83,126.81,7.8871]
[1741569728350,0.0548795,126.83,126.8,7.94012859]
[1741569728556,0.0548795,126.83,126.8,0.05262859]
[1741569729154,7.9412795,126.83,126.8,0.05262859]
[1741569729755,0.0548795,126.83,126.8,0.05262859]
[1741569730454,7.9408795,126.83,126.8,0.05262859]
[1741569730952,0.0548795,126.83,126.8,0.05262859]
[1741569731156,0.0548795,126.83,126.81,7.8872]
[1741569731351,0.0548795,126.83,126.8,0.05262859]
[1741569733148,0.0548795,126.83,126.82,7.8866]
[1741569733547,0.0548795,126.83,126.82,43.9266]
[1741569733755,267.9631,126.88,126.85,7.8846]
[1741569734058,7.8831,126.88,126.85,7.8846]
[1741569734654,23.96747558,126.89,126.84,7.8851]
[1741569734655,7.8836,126.87,126.84,7.8851]
[1741569734852,7.8836,126.87,126.85,0.05701305]
[1741569735053,0.051994,126.88,126.85,0.05701305]
[1741569735251,7.8841,126.86,126.85,0.05701305]
[1741569735759,0.051994,126.88,126.85,0.05701305]
[1741569735953,7.935094,126.88,126.85,0.05701305]
[1741569736148,0.051994,126.88,126.85,0.05701305]
[1741569737058,7.8839,126.87,126.85,0.05701305]
[1741569737251,0.051994,126.88,126.85,0.05701305]
[1741569738051,7.884,126.87,126.85,0.05701305]
[1741569738255,0.051994,126.88,126.85,0.05701305]
[1741569738749,7.8839,126.87,126.85,0.05701305]
[1741569739363,0.051994,126.88,126.85,0.05701305]
[1741569739558,0.051994,126.88,126.86,36.04]
[1741569739758,17.86405771,126.92,126.86,36.04]
[1741569739964,20.12397558,126.96,126.87,20.12397558]